[Event "2026 European Womens Championship"]
[Site "Batumi, GE"]
[Date "2026.05.29"]
[Round "5"]
[White "Ashotia, Barbare"]
[Black "Khurtsilava, Inga"]
[Result "1/2-1/2"]
[Board "107"]
[TimeControl "5400+30"]
[WhiteFideId "13625187"]
[BlackFideId "13600419"]
[WhiteElo "1913"]
[BlackElo "2175"]
[BlackTitle "WGM"]
[WhiteClock "0:12:18"]
[BlackClock "0:11:38"]
[Variant "Standard"]

1. e4 {[%clk 1:30:56]}  c6 {[%clk 1:30:49]} 2. d4 {[%clk 1:31:13]}  d5 {[%clk 1:31:14]} 3. e5 {[%clk 1:31:24]}  Bf5 {[%clk 1:31:07]}
4. g4 {[%clk 1:31:24]}  Be4 {[%clk 1:31:26]} 5. f3 {[%clk 1:31:40]}  Bg6 {[%clk 1:31:52]} 6. e6 {[%clk 1:31:53]}  Qd6 {[%clk 1:31:27]}
7. exf7+ {[%clk 1:31:52]}  Bxf7 {[%clk 1:31:52]} 8. Bd3 {[%clk 1:31:47]}  Nd7 {[%clk 1:29:58]} 9. f4 {[%clk 1:22:55]}  Ngf6 {[%clk 1:29:35]}
10. Qe2 {[%clk 1:13:24]}  c5 {[%clk 1:27:51]} 11. dxc5 {[%clk 1:09:38]}  Nxc5 {[%clk 1:28:11]} 12. Bb5+ {[%clk 1:09:45]}  Ncd7 {[%clk 1:26:30]}
13. c3 {[%clk 0:59:13]}  a6 {[%clk 1:22:45]} 14. Ba4 {[%clk 0:57:17]}  b5 {[%clk 1:13:37]} 15. Bc2 {[%clk 0:57:17]}  e5 {[%clk 1:13:44]}
16. fxe5 {[%clk 0:55:26]}  Qxe5 {[%clk 1:13:37]} 17. g5 {[%clk 0:52:20]}  Qxe2+ {[%clk 1:11:58]} 18. Nxe2 {[%clk 0:52:35]}  Ne4 {[%clk 1:12:24]}
19. Be3 {[%clk 0:51:59]}  Bc5 {[%clk 1:12:22]} 20. Bxc5 {[%clk 0:51:00]}  Ndxc5 {[%clk 1:12:38]} 21. h4 {[%clk 0:50:00]}  O-O {[%clk 1:12:31]}
22. Nd2 {[%clk 0:28:57]}  Rae8 {[%clk 1:10:08]} 23. Nxe4 {[%clk 0:28:54]}  Nxe4 {[%clk 1:10:14]} 24. Bxe4 {[%clk 0:27:47]}  dxe4 {[%clk 1:01:40]}
25. Nd4 {[%clk 0:24:41]}  Bc4 {[%clk 0:57:28]} 26. b3 {[%clk 0:18:00]}  Bd3 {[%clk 0:56:55]} 27. Kd2 {[%clk 0:17:52]}  Rc8 {[%clk 0:44:43]}
28. Rh2 {[%clk 0:12:39]}  Bf1 {[%clk 0:40:56]} 29. Rc1 {[%clk 0:11:10]}  g6 {[%clk 0:38:40]} 30. Ke3 {[%clk 0:10:32]}  Bd3 {[%clk 0:38:39]}
31. Rf2 {[%clk 0:09:00]}  Rfe8 {[%clk 0:33:46]} 32. Rf6 {[%clk 0:07:07]}  a5 {[%clk 0:33:59]} 33. Rb6 {[%clk 0:06:45]}  Rc5 {[%clk 0:29:44]}
34. Rc6 {[%clk 0:05:04]}  Rce5 {[%clk 0:18:59]} 35. Ra6 {[%clk 0:04:09]}  a4 {[%clk 0:16:38]} 36. bxa4 {[%clk 0:03:47]}  bxa4 {[%clk 0:17:07]}
37. Rxa4 {[%clk 0:03:59]}  h6 {[%clk 0:17:33]} 38. Ra7 {[%clk 0:03:07]}  hxg5 {[%clk 0:17:38]} 39. Rg1 {[%clk 0:03:27]}  Rc8 {[%clk 0:11:15]}
40. Rxg5 {[%clk 0:02:41]}  Rxg5 {[%clk 0:11:28]} 41. hxg5 {[%clk 0:03:06]}  Rxc3 {[%clk 0:11:48]} 42. Kf4 {[%clk 0:27:59]}  Bb1 {[%clk 0:33:35]}
43. a4 {[%clk 0:27:20]}  Rc4 {[%clk 0:30:21]} 44. Ke3 {[%clk 0:21:28]}  Rc3+ {[%clk 0:26:34]} 45. Ke2 {[%clk 0:20:38]}  Ba2 {[%clk 0:24:29]}
46. Re7 {[%clk 0:17:23]}  Bc4+ {[%clk 0:23:57]} 47. Kf2 {[%clk 0:17:44]}  Ra3 {[%clk 0:17:22]} 48. Rxe4 {[%clk 0:16:01]}  Rxa4 {[%clk 0:17:40]}
49. Ke3 {[%clk 0:15:59]}  Ba2 {[%clk 0:15:49]} 50. Re7 {[%clk 0:15:35]}  Kf8 {[%clk 0:14:41]} 51. Rc7 {[%clk 0:14:24]}  Bb1 {[%clk 0:13:16]}
52. Rb7 {[%clk 0:13:48]}  Bf5 {[%clk 0:11:22]} 53. Rb5 {[%clk 0:13:18]}  Kg7 {[%clk 0:11:38]} 54. Nxf5+ {[%clk 0:12:18]} 1/2-1/2

[Event "2026 European Womens Championship"]
[Site "Batumi, GE"]
[Date "2026.05.29"]
[Round "5"]
[White "Starosta, Martyna"]
[Black "Akat, Elifnaz"]
[Result "1/2-1/2"]
[Board "108"]
[TimeControl "5400+30"]
[WhiteFideId "21818754"]
[BlackFideId "34560556"]
[WhiteElo "2175"]
[BlackElo "2061"]
[WhiteTitle "WIM"]
[BlackTitle "WFM"]
[WhiteClock "0:01:04"]
[BlackClock "0:01:22"]
[Variant "Standard"]

1. d4 {[%clk 1:30:57]}  d5 {[%clk 1:30:40]} 2. c4 {[%clk 1:31:22]}  c6 {[%clk 1:31:00]} 3. Nc3 {[%clk 1:31:46]}  Nf6 {[%clk 1:31:25]}
4. Nf3 {[%clk 1:32:10]}  e6 {[%clk 1:31:28]} 5. Bg5 {[%clk 1:32:22]}  Nbd7 {[%clk 1:31:10]} 6. e3 {[%clk 1:31:57]}  Qa5 {[%clk 1:29:05]}
7. cxd5 {[%clk 1:32:07]}  exd5 {[%clk 1:25:13]} 8. Nd2 {[%clk 1:32:27]}  Ne4 {[%clk 1:21:28]} 9. Ndxe4 {[%clk 1:27:15]}  dxe4 {[%clk 1:21:56]}
10. Bh4 {[%clk 1:18:19]}  Bb4 {[%clk 1:18:05]} 11. Qc2 {[%clk 1:15:57]}  O-O {[%clk 1:16:57]} 12. Be2 {[%clk 1:14:37]}  f5 {[%clk 1:10:00]}
13. O-O {[%clk 1:09:52]}  Nf6 {[%clk 1:07:02]} 14. Bc4+ {[%clk 1:04:46]}  Nd5 {[%clk 1:00:53]} 15. a3 {[%clk 0:47:48]}  Bxc3 {[%clk 1:00:15]}
16. bxc3 {[%clk 0:48:05]}  Kh8 {[%clk 0:53:02]} 17. Rfc1 {[%clk 0:45:25]}  f4 {[%clk 0:42:27]} 18. exf4 {[%clk 0:39:40]}  Rxf4 {[%clk 0:39:05]}
19. Bg3 {[%clk 0:38:22]}  Rf8 {[%clk 0:39:25]} 20. Qxe4 {[%clk 0:36:46]}  Bf5 {[%clk 0:36:36]} 21. Qe1 {[%clk 0:33:35]}  Rfe8 {[%clk 0:34:33]}
22. Qd2 {[%clk 0:32:49]}  Nf6 {[%clk 0:34:00]} 23. Bd3 {[%clk 0:26:07]}  Ne4 {[%clk 0:33:27]} 24. Bxe4 {[%clk 0:26:06]}  Bxe4 {[%clk 0:33:45]}
25. Be5 {[%clk 0:25:32]}  Qd8 {[%clk 0:27:24]} 26. Qf4 {[%clk 0:24:05]}  Bg6 {[%clk 0:27:18]} 27. Re1 {[%clk 0:22:08]}  Rf8 {[%clk 0:27:24]}
28. Qd2 {[%clk 0:18:20]}  Qd5 {[%clk 0:22:14]} 29. Re3 {[%clk 0:16:51]}  Rae8 {[%clk 0:19:51]} 30. Rae1 {[%clk 0:16:43]}  Kg8 {[%clk 0:19:50]}
31. Qe2 {[%clk 0:13:15]}  b5 {[%clk 0:18:24]} 32. h4 {[%clk 0:11:33]}  Qc4 {[%clk 0:14:45]} 33. Qd2 {[%clk 0:09:07]}  Qb3 {[%clk 0:13:16]}
34. Rg3 {[%clk 0:07:42]}  Rf7 {[%clk 0:13:20]} 35. Rg5 {[%clk 0:03:27]}  Qc2 {[%clk 0:11:59]} 36. Qe3 {[%clk 0:03:45]}  Rf5 {[%clk 0:07:20]}
37. Rc1 {[%clk 0:02:11]}  Qb2 {[%clk 0:06:13]} 38. Rxf5 {[%clk 0:01:06]}  Bxf5 {[%clk 0:06:40]} 39. h5 {[%clk 0:01:12]}  h6 {[%clk 0:05:57]}
40. c4 {[%clk 0:00:38]}  c5 {[%clk 0:01:52]} 41. cxb5 {[%clk 0:20:58]}  cxd4 {[%clk 0:25:13]} 42. Bxd4 {[%clk 0:21:07]}  Qxb5 {[%clk 0:24:48]}
43. Qf4 {[%clk 0:14:39]}  Re4 {[%clk 0:20:09]} 44. Qd6 {[%clk 0:14:08]}  Be6 {[%clk 0:11:10]} 45. Bxg7 {[%clk 0:07:01]}  Qf5 {[%clk 0:05:18]}
46. Bxh6 {[%clk 0:06:32]}  Rg4 {[%clk 0:01:50]} 47. Re1 {[%clk 0:05:14]}  Bf7 {[%clk 0:01:20]} 48. Qe5 {[%clk 0:02:40]}  Qf3 {[%clk 0:01:00]}
49. g3 {[%clk 0:01:14]}  Bxh5 {[%clk 0:00:54]} 50. Bf4 {[%clk 0:00:39]}  Bf7 {[%clk 0:01:02]} 51. Qb8+ {[%clk 0:00:44]}  Kh7 {[%clk 0:01:10]}
52. Qxa7 {[%clk 0:01:04]}  Qxf4 {[%clk 0:01:22]} 1/2-1/2

[Event "2026 European Womens Championship"]
[Site "Batumi, GE"]
[Date "2026.05.29"]
[Round "5"]
[White "Hariharan, Shambavi"]
[Black "Odisharia, Teona"]
[Result "1/2-1/2"]
[Board "109"]
[TimeControl "5400+30"]
[WhiteFideId "488160"]
[BlackFideId "13602322"]
[WhiteElo "2008"]
[BlackElo "2167"]
[WhiteTitle "WFM"]
[BlackTitle "WFM"]
[WhiteClock "0:01:22"]
[BlackClock "0:01:58"]
[Variant "Standard"]

1. d4 {[%clk 1:30:57]}  Nf6 {[%clk 1:30:55]} 2. c4 {[%clk 1:31:24]}  g6 {[%clk 1:31:20]} 3. Nc3 {[%clk 1:31:50]}  Bg7 {[%clk 1:31:45]}
4. Nf3 {[%clk 1:32:15]}  O-O {[%clk 1:32:05]} 5. g3 {[%clk 1:32:41]}  c5 {[%clk 1:31:53]} 6. Bg2 {[%clk 1:31:09]}  d6 {[%clk 1:25:57]}
7. e3 {[%clk 1:30:29]}  Nc6 {[%clk 1:20:46]} 8. O-O {[%clk 1:29:44]}  cxd4 {[%clk 1:20:43]} 9. exd4 {[%clk 1:29:17]}  Bg4 {[%clk 1:20:24]}
10. Be3 {[%clk 1:22:35]}  Qc8 {[%clk 1:17:03]} 11. Qd2 {[%clk 1:18:54]}  Rd8 {[%clk 1:10:33]} 12. Rac1 {[%clk 1:07:48]}  e5 {[%clk 0:53:59]}
13. b3 {[%clk 1:00:07]}  Bxf3 {[%clk 0:44:28]} 14. Bxf3 {[%clk 1:00:29]}  Qf5 {[%clk 0:44:54]} 15. Bg2 {[%clk 0:53:32]}  Ng4 {[%clk 0:17:23]}
16. dxe5 {[%clk 0:38:13]}  dxe5 {[%clk 0:29:25]} 17. Nd5 {[%clk 0:37:18]}  Qh5 {[%clk 0:25:06]} 18. h3 {[%clk 0:32:10]}  Nxe3 {[%clk 0:24:58]}
19. Qxe3 {[%clk 0:31:40]}  Nd4 {[%clk 0:24:36]} 20. Kh2 {[%clk 0:30:13]}  Kh8 {[%clk 0:23:08]} 21. f4 {[%clk 0:23:47]}  exf4 {[%clk 0:19:06]}
22. Nxf4 {[%clk 0:22:00]}  Qa5 {[%clk 0:19:27]} 23. Qf2 {[%clk 0:20:20]}  Nc6 {[%clk 0:16:49]} 24. Rcd1 {[%clk 0:15:49]}  h5 {[%clk 0:06:25]}
25. Bd5 {[%clk 0:11:33]}  Qc7 {[%clk 0:05:19]} 26. Rde1 {[%clk 0:07:12]}  Rf8 {[%clk 0:04:48]} 27. Re4 {[%clk 0:05:38]}  Rae8 {[%clk 0:03:38]}
28. Rfe1 {[%clk 0:04:11]}  Rxe4 {[%clk 0:02:55]} 29. Rxe4 {[%clk 0:03:01]}  Kh7 {[%clk 0:03:08]} 30. Re1 {[%clk 0:01:18]}  Nd4 {[%clk 0:02:29]}
31. Re4 {[%clk 0:01:25]}  Nc6 {[%clk 0:02:10]} 32. Kh1 {[%clk 0:01:13]}  Qd7 {[%clk 0:02:17]} 33. Kg2 {[%clk 0:01:22]}  a6 {[%clk 0:01:58]} 1/2-1/2

[Event "2026 European Womens Championship"]
[Site "Batumi, GE"]
[Date "2026.05.29"]
[Round "5"]
[White "Damaso Tacoronte, Carolina"]
[Black "Gueci, Tea"]
[Result "1-0"]
[Board "110"]
[TimeControl "5400+30"]
[WhiteFideId "2292858"]
[BlackFideId "872342"]
[WhiteElo "1890"]
[BlackElo "2160"]
[BlackTitle "WIM"]
[WhiteClock "0:01:25"]
[BlackClock "0:02:27"]
[Variant "Standard"]

1. d4 {[%clk 1:29:47]}  d5 {[%clk 1:30:57]} 2. c4 {[%clk 1:29:36]}  e6 {[%clk 1:31:23]} 3. Nc3 {[%clk 1:29:11]}  Nf6 {[%clk 1:31:48]}
4. cxd5 {[%clk 1:28:51]}  exd5 {[%clk 1:32:12]} 5. Bg5 {[%clk 1:28:11]}  Be6 {[%clk 1:32:34]} 6. e3 {[%clk 1:27:46]}  c6 {[%clk 1:32:48]}
7. Bd3 {[%clk 1:26:27]}  Nbd7 {[%clk 1:32:59]} 8. Nf3 {[%clk 1:24:21]}  h6 {[%clk 1:32:39]} 9. Bh4 {[%clk 1:24:23]}  g5 {[%clk 1:32:41]}
10. Bg3 {[%clk 1:24:25]}  Nh5 {[%clk 1:33:01]} 11. Qc2 {[%clk 1:21:54]}  Nxg3 {[%clk 1:33:02]} 12. hxg3 {[%clk 1:22:01]}  Bg7 {[%clk 1:32:21]}
13. a3 {[%clk 1:19:30]}  a5 {[%clk 1:27:09]} 14. Rb1 {[%clk 1:16:33]}  O-O {[%clk 1:23:58]} 15. Bh7+ {[%clk 1:12:34]}  Kh8 {[%clk 1:23:58]}
16. Bf5 {[%clk 1:10:17]}  Qf6 {[%clk 1:17:42]} 17. g4 {[%clk 1:03:40]}  Rfe8 {[%clk 1:14:22]} 18. Ne2 {[%clk 1:02:31]}  Bxf5 {[%clk 1:11:43]}
19. gxf5 {[%clk 0:58:58]}  g4 {[%clk 1:05:35]} 20. Nh4 {[%clk 0:55:14]}  Qg5 {[%clk 1:00:00]} 21. g3 {[%clk 0:45:13]}  Rac8 {[%clk 0:52:36]}
22. Qb3 {[%clk 0:42:21]}  b5 {[%clk 0:50:18]} 23. O-O {[%clk 0:41:45]}  Nf6 {[%clk 0:44:37]} 24. Rbc1 {[%clk 0:35:22]}  Ne4 {[%clk 0:43:19]}
25. Qd3 {[%clk 0:35:03]}  Bf6 {[%clk 0:37:33]} 26. Nf4 {[%clk 0:32:41]}  Qg8 {[%clk 0:36:05]} 27. Nfg2 {[%clk 0:29:07]}  Qf8 {[%clk 0:32:21]}
28. Rc2 {[%clk 0:28:00]}  Qd6 {[%clk 0:29:22]} 29. Kh2 {[%clk 0:25:54]}  a4 {[%clk 0:24:19]} 30. Rfc1 {[%clk 0:22:46]}  Rg8 {[%clk 0:20:38]}
31. Qe2 {[%clk 0:21:34]}  Qd7 {[%clk 0:17:46]} 32. Kg1 {[%clk 0:20:16]}  Nd6 {[%clk 0:09:36]} 33. Qd3 {[%clk 0:19:16]}  h5 {[%clk 0:07:48]}
34. b3 {[%clk 0:16:44]}  axb3 {[%clk 0:05:36]} 35. Qxb3 {[%clk 0:17:07]}  Nc4 {[%clk 0:04:34]} 36. a4 {[%clk 0:15:01]}  Ra8 {[%clk 0:02:59]}
37. axb5 {[%clk 0:15:10]}  cxb5 {[%clk 0:03:27]} 38. Ra2 {[%clk 0:11:39]}  Ra4 {[%clk 0:03:19]} 39. Rb1 {[%clk 0:10:26]}  Rga8 {[%clk 0:03:22]}
40. Re2 {[%clk 0:08:31]}  b4 {[%clk 0:02:22]} 41. e4 {[%clk 0:02:31]}  Bxd4 {[%clk 0:23:19]} 42. exd5 {[%clk 0:31:44]}  Qxd5 {[%clk 0:20:54]}
43. Nf4 {[%clk 0:31:15]}  Qb5 {[%clk 0:16:47]} 44. Nxh5 {[%clk 0:20:37]}  Ra1 {[%clk 0:14:15]} 45. Kh2 {[%clk 0:15:17]}  R8a3 {[%clk 0:03:36]}
46. Qd1 {[%clk 0:12:33]}  Qd7 {[%clk 0:01:30]} 47. Qc1 {[%clk 0:05:14]}  Qc6 {[%clk 0:00:32]} 48. f6 {[%clk 0:04:31]}  Be3 {[%clk 0:00:37]}
49. Rxe3 {[%clk 0:03:04]}  Rxe3 {[%clk 0:00:37]} 50. Rxa1 {[%clk 0:02:35]}  b3 {[%clk 0:00:53]} 51. Rb1 {[%clk 0:02:02]}  Qa4 {[%clk 0:00:33]}
52. fxe3 {[%clk 0:01:42]}  Qa2+ {[%clk 0:00:33]} 53. Ng2 {[%clk 0:01:42]}  Nd2 {[%clk 0:00:34]} 54. Rb2 {[%clk 0:01:04]}  Nf3+ {[%clk 0:01:01]}
55. Kh1 {[%clk 0:01:16]}  Qa5 {[%clk 0:01:14]} 56. Qc8+ {[%clk 0:01:16]}  Kh7 {[%clk 0:01:43]} 57. Qxg4 {[%clk 0:01:25]}  Qa1+ {[%clk 0:01:47]}
58. Ne1 {[%clk 0:01:32]}  Qxe1+ {[%clk 0:01:07]} 59. Kg2 {[%clk 0:02:01]}  Qg1+ {[%clk 0:01:00]} 60. Kxf3 {[%clk 0:02:13]}  Qh1+ {[%clk 0:01:02]}
61. Ke2 {[%clk 0:01:09]}  Qg2+ {[%clk 0:00:42]} 62. Kd3 {[%clk 0:01:22]}  Qf1+ {[%clk 0:00:47]} 63. Kc3 {[%clk 0:01:20]}  Qc1+ {[%clk 0:00:45]}
64. Kxb3 {[%clk 0:01:12]}  Qxe3+ {[%clk 0:01:11]} 65. Ka2 {[%clk 0:00:45]}  Qa7+ {[%clk 0:01:34]} 66. Kb1 {[%clk 0:01:09]}  Qg1+ {[%clk 0:01:59]}
67. Kc2 {[%clk 0:01:31]}  Qc5+ {[%clk 0:02:08]} 68. Kd3 {[%clk 0:01:42]}  Qd5+ {[%clk 0:02:29]} 69. Ke3 {[%clk 0:01:42]}  Qc5+ {[%clk 0:02:52]}
70. Kf4 {[%clk 0:01:15]}  Qd4+ {[%clk 0:02:56]} 71. Kf3 {[%clk 0:00:43]}  Qc3+ {[%clk 0:02:22]} 72. Kg2 {[%clk 0:00:42]}  Qxb2+ {[%clk 0:02:31]}
73. Kh3 {[%clk 0:01:09]}  Kh6 {[%clk 0:02:27]} 74. Qg7+ {[%clk 0:01:25]} 1-0

[Event "2026 European Womens Championship"]
[Site "Batumi, GE"]
[Date "2026.05.29"]
[Round "5"]
[White "Ptacnikova, Lenka"]
[Black "Esadze, Tamari"]
[Result "1-0"]
[Board "111"]
[TimeControl "5400+30"]
[WhiteFideId "305650"]
[BlackFideId "13611186"]
[WhiteElo "2126"]
[BlackElo "1974"]
[WhiteTitle "WGM"]
[WhiteClock "0:59:55"]
[BlackClock "0:14:28"]
[Variant "Standard"]

1. Nf3 {[%clk 1:30:54]}  Nf6 {[%clk 1:21:34]} 2. c4 {[%clk 1:30:06]}  e6 {[%clk 1:21:58]} 3. b3 {[%clk 1:29:52]}  d5 {[%clk 1:22:15]}
4. Bb2 {[%clk 1:30:16]}  Bd6 {[%clk 1:21:39]} 5. g3 {[%clk 1:29:24]}  O-O {[%clk 1:21:49]} 6. Bg2 {[%clk 1:29:46]}  Nbd7 {[%clk 1:20:03]}
7. d4 {[%clk 1:29:22]}  c6 {[%clk 1:16:01]} 8. O-O {[%clk 1:27:36]}  Re8 {[%clk 1:10:44]} 9. Nc3 {[%clk 1:24:52]}  b6 {[%clk 1:09:07]}
10. Qc2 {[%clk 1:20:21]}  Bb7 {[%clk 1:03:18]} 11. Rfd1 {[%clk 1:18:45]}  c5 {[%clk 0:59:01]} 12. cxd5 {[%clk 1:15:53]}  exd5 {[%clk 0:55:26]}
13. dxc5 {[%clk 1:14:34]}  bxc5 {[%clk 0:45:20]} 14. Ng5 {[%clk 1:11:14]}  Be5 {[%clk 0:24:45]} 15. Nxd5 {[%clk 1:01:44]}  Bxd5 {[%clk 0:14:11]}
16. Bxd5 {[%clk 1:01:51]}  Nxd5 {[%clk 0:14:36]} 17. Rxd5 {[%clk 1:01:05]}  Qxg5 {[%clk 0:13:52]} 18. Rxd7 {[%clk 1:01:08]}  Bxb2 {[%clk 0:09:18]}
19. Qxb2 {[%clk 1:01:30]}  Qg4 {[%clk 0:07:45]} 20. Rd2 {[%clk 0:59:37]}  Re6 {[%clk 0:05:33]} 21. Rad1 {[%clk 0:59:26]}  Rae8 {[%clk 0:05:41]}
22. Qc2 {[%clk 0:57:23]}  h6 {[%clk 0:05:09]} 23. e3 {[%clk 0:56:04]}  Re5 {[%clk 0:05:16]} 24. Rd5 {[%clk 0:55:09]}  Qh5 {[%clk 0:02:24]}
25. Qc4 {[%clk 0:53:32]}  Qf3 {[%clk 0:01:29]} 26. R1d2 {[%clk 0:52:46]}  Kh7 {[%clk 0:01:08]} 27. Qxc5 {[%clk 0:52:26]}  Qf6 {[%clk 0:00:41]}
28. Rxe5 {[%clk 0:51:05]}  Rxe5 {[%clk 0:01:10]} 29. Qxa7 {[%clk 0:50:39]}  Qc6 {[%clk 0:01:30]} 30. Qd4 {[%clk 0:50:19]}  Rc5 {[%clk 0:01:32]}
31. e4 {[%clk 0:47:15]}  Rc1+ {[%clk 0:01:47]} 32. Kg2 {[%clk 0:47:17]}  g6 {[%clk 0:00:34]} 33. Qd5 {[%clk 0:46:43]}  Qf6 {[%clk 0:01:01]}
34. Rd3 {[%clk 0:44:41]}  h5 {[%clk 0:00:39]} 35. e5 {[%clk 0:43:07]}  Qg7 {[%clk 0:00:56]} 36. Rf3 {[%clk 0:41:18]}  Rc7 {[%clk 0:00:59]}
37. b4 {[%clk 0:41:22]}  Re7 {[%clk 0:01:20]} 38. Rf6 {[%clk 0:40:57]}  Qg8 {[%clk 0:01:02]} 39. b5 {[%clk 0:40:22]}  Kg7 {[%clk 0:01:07]}
40. b6 {[%clk 0:39:41]}  Qb8 {[%clk 0:01:25]} 41. a4 {[%clk 0:38:56]}  h4 {[%clk 0:29:05]} 42. g4 {[%clk 1:05:23]}  Qc8 {[%clk 0:28:08]}
43. h3 {[%clk 1:05:39]}  Rd7 {[%clk 0:26:57]} 44. Rd6 {[%clk 1:05:03]}  Re7 {[%clk 0:26:33]} 45. a5 {[%clk 1:04:30]}  Qc3 {[%clk 0:24:53]}
46. b7 {[%clk 1:00:53]}  Re8 {[%clk 0:15:49]} 47. Rd7 {[%clk 0:59:42]}  Kh6 {[%clk 0:14:28]} 48. Qd2+ {[%clk 0:59:55]} 1-0

[Event "2026 European Womens Championship"]
[Site "Batumi, GE"]
[Date "2026.05.29"]
[Round "5"]
[White "Nahapetyan, Ani"]
[Black "Donghvani, Nia"]
[Result "1-0"]
[Board "112"]
[TimeControl "5400+30"]
[WhiteFideId "13317776"]
[BlackFideId "13614649"]
[WhiteElo "1827"]
[BlackElo "2117"]
[BlackTitle "WFM"]
[WhiteClock "0:15:32"]
[BlackClock "0:01:47"]
[Variant "Standard"]

1. e4 {[%clk 1:30:52]}  e6 {[%clk 1:21:09]} 2. d4 {[%clk 1:30:56]}  d5 {[%clk 1:21:14]} 3. Nc3 {[%clk 1:31:18]}  Nf6 {[%clk 1:21:18]}
4. e5 {[%clk 1:31:42]}  Nfd7 {[%clk 1:21:45]} 5. f4 {[%clk 1:32:05]}  c5 {[%clk 1:22:12]} 6. Nf3 {[%clk 1:32:29]}  Nc6 {[%clk 1:22:36]}
7. Be3 {[%clk 1:32:30]}  a6 {[%clk 1:22:34]} 8. Ne2 {[%clk 1:31:33]}  Qb6 {[%clk 1:13:38]} 9. Qc1 {[%clk 1:26:48]}  a5 {[%clk 0:50:32]}
10. c3 {[%clk 1:22:25]}  f6 {[%clk 0:46:05]} 11. g3 {[%clk 1:08:15]}  fxe5 {[%clk 0:38:14]} 12. dxe5 {[%clk 1:13:21]}  Be7 {[%clk 0:33:57]}
13. Bh3 {[%clk 1:12:01]}  Nf8 {[%clk 0:34:21]} 14. O-O {[%clk 1:10:17]}  Ng6 {[%clk 0:31:55]} 15. Qc2 {[%clk 1:02:34]}  Bd7 {[%clk 0:31:01]}
16. Bxe6 {[%clk 0:53:36]}  Bxe6 {[%clk 0:31:22]} 17. f5 {[%clk 0:54:01]}  d4 {[%clk 0:20:23]} 18. cxd4 {[%clk 0:42:46]}  Nb4 {[%clk 0:20:30]}
19. Qb1 {[%clk 0:31:27]}  Bc4 {[%clk 0:17:39]} 20. Qd1 {[%clk 0:29:19]}  Qa6 {[%clk 0:14:16]} 21. Rf2 {[%clk 0:26:19]}  Nd3 {[%clk 0:08:25]}
22. fxg6 {[%clk 0:23:12]}  Nxf2 {[%clk 0:08:44]} 23. Kxf2 {[%clk 0:23:38]}  Bxe2 {[%clk 0:06:49]} 24. Qxe2 {[%clk 0:24:03]}  Qxe2+ {[%clk 0:06:23]}
25. Kxe2 {[%clk 0:24:29]}  cxd4 {[%clk 0:05:58]} 26. Nxd4 {[%clk 0:24:04]}  hxg6 {[%clk 0:05:46]} 27. h4 {[%clk 0:23:48]}  Rc8 {[%clk 0:04:02]}
28. Kd3 {[%clk 0:23:33]}  O-O {[%clk 0:03:35]} 29. Ke4 {[%clk 0:21:20]}  Rfe8 {[%clk 0:02:50]} 30. Rc1 {[%clk 0:18:19]}  Bc5 {[%clk 0:02:09]}
31. Rc4 {[%clk 0:17:02]}  b6 {[%clk 0:01:53]} 32. a3 {[%clk 0:16:20]}  Bxd4 {[%clk 0:01:13]} 33. Rxd4 {[%clk 0:16:31]}  Rc5 {[%clk 0:01:16]}
34. Rd5 {[%clk 0:15:44]}  Rc6 {[%clk 0:01:17]} 35. Rd7 {[%clk 0:14:38]}  Rc2 {[%clk 0:01:06]} 36. Bd4 {[%clk 0:14:36]}  Re6 {[%clk 0:00:43]}
37. Kd5 {[%clk 0:14:33]}  Rcc6 {[%clk 0:00:57]} 38. Rd6 {[%clk 0:14:25]}  Rcxd6+ {[%clk 0:01:05]} 39. exd6 {[%clk 0:14:49]}  Re8 {[%clk 0:01:29]}
40. d7 {[%clk 0:14:55]}  Rd8 {[%clk 0:01:41]} 41. Kd6 {[%clk 0:15:08]}  Kf7 {[%clk 0:01:47]} 42. Bxb6 {[%clk 0:15:32]} 1-0

[Event "2026 European Womens Championship"]
[Site "Batumi, GE"]
[Date "2026.05.29"]
[Round "5"]
[White "Nadanyan, Kiti"]
[Black "Mkrtchyan, Anahit H."]
[Result "1-0"]
[Board "113"]
[TimeControl "5400+30"]
[WhiteFideId "13316710"]
[BlackFideId "13314858"]
[WhiteElo "1801"]
[BlackElo "2107"]
[WhiteClock "0:00:32"]
[BlackClock "0:30:00"]
[Variant "Standard"]

1. e4 {[%clk 1:22:24]}  c6 {[%clk 1:30:54]} 2. d4 {[%clk 1:22:16]}  d5 {[%clk 1:31:18]} 3. Nc3 {[%clk 1:22:42]}  dxe4 {[%clk 1:31:42]}
4. Nxe4 {[%clk 1:23:08]}  Nf6 {[%clk 1:32:05]} 5. Qd3 {[%clk 1:22:15]}  Nxe4 {[%clk 1:27:52]} 6. Qxe4 {[%clk 1:22:39]}  Nd7 {[%clk 1:25:15]}
7. Nf3 {[%clk 1:22:25]}  Nf6 {[%clk 1:24:42]} 8. Qd3 {[%clk 1:22:31]}  g6 {[%clk 1:20:26]} 9. Be2 {[%clk 1:20:13]}  Bf5 {[%clk 1:19:15]}
10. Qb3 {[%clk 1:18:56]}  Qb6 {[%clk 1:15:33]} 11. c3 {[%clk 1:16:43]}  Bg7 {[%clk 1:13:20]} 12. O-O {[%clk 1:15:39]}  O-O {[%clk 1:11:16]}
13. Re1 {[%clk 1:14:06]}  Be6 {[%clk 1:02:48]} 14. Qa3 {[%clk 1:01:21]}  Qc7 {[%clk 0:41:39]} 15. Ng5 {[%clk 0:51:43]}  Bf5 {[%clk 0:30:44]}
16. Bf1 {[%clk 0:37:05]}  e6 {[%clk 0:24:31]} 17. h3 {[%clk 0:33:42]}  h6 {[%clk 0:21:11]} 18. Nf3 {[%clk 0:33:17]}  g5 {[%clk 0:16:14]}
19. g4 {[%clk 0:19:03]}  Bh7 {[%clk 0:15:35]} 20. Ne5 {[%clk 0:18:55]}  Nd5 {[%clk 0:10:30]} 21. c4 {[%clk 0:16:17]}  Nf4 {[%clk 0:08:05]}
22. Bd2 {[%clk 0:03:24]}  Rad8 {[%clk 0:04:59]} 23. Bb4 {[%clk 0:02:26]}  Rxd4 {[%clk 0:01:13]} 24. Bxf8 {[%clk 0:02:00]}  Bxf8 {[%clk 0:01:39]}
25. Qxa7 {[%clk 0:01:15]}  c5 {[%clk 0:00:56]} 26. Nf3 {[%clk 0:01:01]}  Rd6 {[%clk 0:01:12]} 27. Qa3 {[%clk 0:00:35]}  Bg7 {[%clk 0:01:22]}
28. Rad1 {[%clk 0:00:56]}  Bd4 {[%clk 0:01:31]} 29. Nxd4 {[%clk 0:00:46]}  cxd4 {[%clk 0:01:55]} 30. Rd2 {[%clk 0:00:31]}  Ra6 {[%clk 0:01:07]}
31. Qb3 {[%clk 0:00:32]}  e5 {[%clk 0:01:12]} 32. Qb5 {[%clk 0:00:47]}  Re6 {[%clk 0:01:11]} 33. Qa4 {[%clk 0:00:42]}  h5 {[%clk 0:01:08]}
34. f3 {[%clk 0:00:34]}  h4 {[%clk 0:00:53]} 35. Qb5 {[%clk 0:00:33]}  f6 {[%clk 0:00:33]} 36. c5 {[%clk 0:00:50]}  Kg7 {[%clk 0:00:53]}
37. Kh1 {[%clk 0:00:32]}  e4 {[%clk 0:30:00]} 1-0